[Event "ETCC Open 2023"]
[Site "Budva"]
[Date "2023.11.14"]
[Round "4.1"]
[White "Keymer, Vincent"]
[Black "Wojtaszek, Radoslaw"]
[Result "1/2-1/2"]
[ECO "E14"]
[WhiteElo "2721"]
[BlackElo "2668"]
[Annotator "TA"]
[PlyCount "96"]
[EventDate "2023.11.10"]
[EventType "team-tourn"]
[EventCountry "MNE"]
[SourceTitle "playchess.com"]
[Source "ChessBase"]
[SourceQuality "1"]
[WhiteTeam "Germany"]
[BlackTeam "Poland"]
[WhiteTeamCountry "GER"]
[BlackTeamCountry "POL"]
[TimeControl "40/5400+30:1800+30"]

{[%evp 18,96,0,2,0,0,0,-1,22,-5,19,20,14,0,7,0,0,0,1,-7,50,6,12,7,29,22,28,29,148,147,258,277,285,273,395,367,352,305,304,304,304,293,322,6,108,64,64,73,73,159,158,13,16,-132,-118,-80,-83,-160,-160,-162,-162,-183,-164,-178,-143,-154,-115,-112,-15,-15,-15,-18,-18,-70,0,0,0,0,0,0,0]} 1. d4 {[%emt 0:00:06]} Nf6 {[%emt 0:00:06]} 2. Nf3 {[%emt 0:00:03]} d5 {[%emt 0:00:11]} 3. e3 {[%emt 0:00:04]} e6 {[%emt 0:00:24]} 4. Nbd2 {[%emt 0:00:05]} b6 {[%emt 0:00:49]} 5. b3 {[%emt 0:00:06]} Bb7 {[%emt 0:01:18]} 6. Bb2 {[%emt 0:00:05]} Bd6 {[%emt 0:01:31]} 7. Bd3 {[%emt 0:03:20]} O-O {[%emt 0:01:32]} 8. O-O {[%emt 0:00:04]} Nbd7 {[%emt 0:06:21]} 9. c4 $1 {[%emt 0:00:11][%mdl 4] is more profitable than 9.Ne5 at the moment.} c5 {[%emt 0:03:33]} 10. Qe2 {[%emt 0:10:32]} cxd4 {[%emt 0:09:12] E14: Queen's Indian: Classical Variation (4 e3).} 11. exd4 {[%emt 0:00:21]} Qe7 {[%emt 0:00:38]} 12. a3 {[%emt 0:15:04][%cal Ba2a3,Ba3a4,Ba4a5,Ba5a6][%mdl 32]} Bf4 {[%emt 0:16:34] [#]} 13. a4 $146 {[%emt 0:06:10]} ({Predecessor:} 13. Rfe1 Rfd8 14. a4 Bd6 15. a5 Bb4 16. axb6 axb6 17. Rxa8 Rxa8 18. Ra1 Rxa1+ 19. Bxa1 Qd8 20. Qd1 Qa8 21. Bf1 h6 22. Qc1 {½-½ Bruno,F (2436)-Godena,M (2495) ITA-ch 74th Boscotrecase 2014 (7)}) 13... Rfd8 {[%emt 0:01:12]} 14. a5 {[%emt 0:03:57]} Rac8 {[%emt 0:00:20]} 15. Rfd1 {[%emt 0:06:05]} (15. g3 {is interesting.} Bd6 16. Ne5 dxc4 17. bxc4 Bxe5 18. dxe5 Ng4 19. Qxg4 Nc5 20. Bxh7+ Kxh7 21. Nf3) 15... Qd6 {[%emt 0:02:57]} 16. a6 {[%emt 0:04:17]} Ba8 {[%emt 0:00:09]} 17. Nb1 {[%emt 0:16:23][%cal Bd2b1,Bb1a3,Ba3b5,Bb5d6][%mdl 32]} dxc4 {[%emt 0:05:35]} 18. bxc4 {[%emt 0:00:07][%cal Bb3c4,Bc4c5][%mdl 32] [#]} b5 {[%emt 0:02:51]} 19. c5 {[%emt 0:02:05]} Qb8 {[%emt 0:00:32][%cal Oe6e5]} 20. Na3 {[%emt 0:05:48]} e5 {[%emt 0:11:13][%mdl 64] Deflection} 21. Nxe5 {[%emt 0:01:26]} (21. Nxb5 $2 e4 22. Bxe4 Bxe4 $19) 21... Nxe5 {[%emt 0:01:51]} 22. dxe5 {[%emt 0:00:03] And now g3 would win.} Rxc5 {[%emt 0:05:03]} (22... Re8 $1 $11) 23. Nxb5 $16 {[%emt 0:11:34] Hoping for Nd6.} (23. exf6 Re8 24. Bxh7+ (24. Qg4 Rg5 $15) 24... Kxh7 25. Qd3+ (25. Qg4 $2 Rg5 $19) 25... Kg8 $17) 23... Re8 {[%emt 0:15:26]} (23... Bxe5 $2 24. Bxe5 Rxe5 25. Bxh7+ Kxh7 26. Rxd8 Qxd8 27. Qxe5 $18) (23... Rxd3 24. Rxd3 (24. Qxd3 Rxb5 25. exf6 Bxh2+ 26. Kf1 Rd5 $18) 24... Be4 25. Nxa7 (25. exf6 Bxd3 26. Qxd3 Rxb5 $16) 25... Bxe5 26. Nc6 Bxh2+ 27. Kh1 Bxd3 28. Qxd3 Rxc6 29. a7 $18) (23... Rxe5 $16 {is a better defense.} 24. Bxe5 Bxe5) 24. Nd6 $18 {[%emt 0:00:20]} Rexe5 {[%emt 0:00:42]} 25. Bxe5 {[%emt 0:00:08]} Bxe5 {[%emt 0:00:21]} (25... Rxe5 $142 26. Qc2 (26. Qa2 Bd5 $14) 26... Bxg2) 26. Rab1 {[%emt 0:01:29]} Qxd6 {[%emt 0:00:31] [#]} 27. Bxh7+ $1 {[%emt 0:00:13][%mdl 576] Discovered Attack} Kxh7 {[%emt 0:00:26]} 28. Rxd6 {[%emt 0:00:04]} Bxd6 {[%emt 0:00:06]} 29. Qd3+ {[%emt 0:08:54]} Ne4 {[%emt 0:00:07]} 30. Rd1 $2 {[%emt 0:01:05]} (30. f3 $18 Rc3 31. Qd1) 30... Rh5 {[%emt 0:05:09]} (30... Bc7 $1 $11 {remains equal.}) 31. f3 {[%emt 0:02:13][%mdl 64] Pin} Bxh2+ {[%emt 0:00:04]} 32. Kf1 $1 {[%emt 0:00:05]} Bc6 {[%emt 0:00:04]} 33. Rb1 {[%emt 0:01:22] Prevents Bb5} (33. fxe4 $2 {too greedy.} Bb5 $19) 33... Rf5 {[%emt 0:01:26] [#]} 34. Rb4 {[%emt 0:01:43]} ({White must play} 34. Ke2 $1 $16 Ng3+ 35. Ke1) 34... g6 $1 $11 {[%emt 0:01:34]} (34... Ng3+ $2 35. Ke1 g5 36. Qc2 $18 (36. Rb7 Kg7 $16)) 35. Rxe4 {[%emt 0:01:13] [#]} (35. Qe3 $1 $11) 35... Bb5 $1 $36 {[%emt 0:00:16][%mdl 2048] Keeping White busy. This pair of bishops is nice.} 36. Rh4+ {[%emt 0:00:04]} Kg7 {[%emt 0:01:46]} 37. Qxb5 {[%emt 0:00:48]} Rxb5 {[%emt 0:00:03]} 38. Rxh2 {[%emt 0:00:03][%mdl 4096] Endgame KR-KR} Ra5 {[%emt 0:01:56]} 39. Kf2 {[%emt 0:00:22]} Rxa6 {[%emt 0:00:06]} 40. Rh1 {[%emt 0:00:32]} Kf6 {[%emt 0:02:22]} 41. Rb1 {[%emt 0:31:39]} Ke5 {[%emt 0:33:14]} 42. Rb5+ {[%emt 0:00:31]} Kd4 {[%emt 0:00:00]} ({Black should play} 42... Kd6 $17 {Threatens to win with ...Ra2+.} 43. Rb7 Ra2+ 44. Ke3 Ke6) 43. Rb7 $11 {[%emt 0:00:00]} f6 {[%emt 0:00:00]} 44. Re7 {[%emt 0:00:00]} Kd5 {[%emt 0:00:00]} 45. f4 $1 {[%emt 0:00:00]} Ra3 {[%emt 0:00:00]} (45... Ra2+ $15 46. Kf3 a5 47. Rd7+ Ke6) 46. g4 {[%emt 0:00:00] The position is equal.} a5 {[%emt 0:00:00]} 47. Rf7 {[%emt 0:00:00]} Ke6 {[%emt 0:00:00]} 48. Rg7 {[%emt 0:00:00]} g5 {[%emt 0:00:00] What a bad dream for Black.   Weighted Error Value: White=0.27 (precise) /Black=0.24 (precise)} 1/2-1/2

[Event "ETCC Open 2023"]
[Site "Budva"]
[Date "2023.11.14"]
[Round "4.2"]
[White "Teclaf, Pawel"]
[Black "Svane, Rasmus"]
[Result "1/2-1/2"]
[ECO "D00"]
[WhiteElo "2571"]
[BlackElo "2647"]
[Annotator "TA"]
[PlyCount "63"]
[EventDate "2023.11.10"]
[EventType "team-tourn"]
[EventCountry "MNE"]
[SourceTitle "playchess.com"]
[Source "ChessBase"]
[SourceQuality "1"]
[WhiteTeam "Poland"]
[BlackTeam "Germany"]
[WhiteTeamCountry "POL"]
[BlackTeamCountry "GER"]
[TimeControl "40/5400+30:1800+30"]

{[%evp 9,63,0,0,0,18,0,0,0,18,15,43,41,49,59,52,52,48,22,35,21,18,31,29,19,29,25,32,15,21,15,24,10,20,20,20,19,20,20,21,21,56,17,29,0,0,0,0,0,0,0,0,0,0,0,0,0]} 1. d4 {[%emt 0:00:19]} Nf6 {[%emt 0:00:43]} 2. Bg5 {[%emt 0:00:12]} d5 {[%emt 0:00:54]} 3. e3 {[%emt 0:00:06]} c5 {[%emt 0:05:53]} 4. c3 {[%emt 0:00:08]} cxd4 {[%emt 0:05:36]} 5. exd4 {[%emt 0:00:15]} Nc6 {[%emt 0:00:11]} 6. Nd2 {[%emt 0:00:28] D00: 1 d4 d5: Unusual lines.} Qc7 {[%emt 0:03:15]} 7. Be2 {[%emt 0:04:57]} Bf5 {[%emt 0:08:50]} 8. Ngf3 {[%emt 0:01:19]} e6 {[%emt 0:05:52] [#]} (8... h6 $5 {[%cal Rh6g5]} 9. Bxf6 gxf6 $11) 9. Nh4 $146 {[%emt 0:02:17]} ({Predecessor:} 9. Bh4 Bd6 10. Bg3 O-O 11. Bxd6 Qxd6 12. O-O Rab8 13. Qa4 Qc7 14. Nb3 {1-0 Narciso Dublan,M (2553)-Peralta,F (2545) Badalona op 35th 2009 (9)}) 9... Bg6 {[%emt 0:01:05]} (9... Be4 {seems wilder.} 10. O-O Be7 11. g3 h6) 10. g3 {[%emt 0:06:30]} Nd7 {[%emt 0:06:33]} 11. a4 {[%emt 0:03:26]} Bd6 {[%emt 0:05:22]} 12. Nxg6 {[%emt 0:13:20]} hxg6 {[%emt 0:00:08]} 13. Bd3 {[%emt 0:00:10]} Be7 {[%emt 0:05:22]} 14. Be3 {[%emt 0:04:27]} e5 {[%emt 0:03:44]} 15. dxe5 {[%emt 0:05:43]} Ndxe5 {[%emt 0:00:07]} 16. Nf3 {[%emt 0:01:09]} Nxf3+ {[%emt 0:07:00]} 17. Qxf3 {[%emt 0:00:13]} Rd8 {[%emt 0:00:07]} 18. O-O {[%emt 0:03:57]} O-O {[%emt 0:05:13]} 19. Rad1 {[%emt 0:08:10]} Bf6 {[%emt 0:03:47]} 20. Bb5 {[%emt 0:03:20]} a6 {[%emt 0:04:57]} 21. Bxc6 {[%emt 0:00:52]} bxc6 {[%emt 0:00:56]} 22. Bd4 {[%emt 0:01:13]} Bxd4 {[%emt 0:03:49]} 23. Rxd4 {[%emt 0:00:10]} Rfe8 {[%emt 0:00:51]} 24. Rfd1 {[%emt 0:01:55]} a5 {[%emt 0:07:09]} 25. c4 {[%emt 0:17:10]} dxc4 {[%emt 0:00:53]} 26. Rxd8 {[%emt 0:07:33]} Rxd8 {[%emt 0:00:05] The position is equal.} 27. Rxd8+ {[%emt 0:00:02]} Qxd8 {[%emt 0:00:10]} 28. Qxc6 $11 {[%emt 0:00:03] KQ-KQ} Qd4 {[%emt 0:07:33]} 29. Qc8+ {[%emt 0:05:41]} Kh7 {[%emt 0:00:03]} 30. Qh3+ {[%emt 0:00:22]} Kg8 {[%emt 0:00:05]} 31. Qc8+ {[%emt 0:00:44]} Kh7 {[%emt 0:00:05]} 32. Qh3+ {[%emt 0:01:10] Weighted Error Value: White=0.07 (flawless) /Black=0.07 (flawless)} 1/2-1/2

[Event "ETCC Open 2023"]
[Site "Budva"]
[Date "2023.11.14"]
[Round "4.3"]
[White "Bluebaum, Matthias"]
[Black "Bartel, Mateusz"]
[Result "1/2-1/2"]
[ECO "A17"]
[WhiteElo "2670"]
[BlackElo "2651"]
[Annotator "TA"]
[PlyCount "59"]
[EventDate "2023.11.10"]
[EventType "team-tourn"]
[EventCountry "MNE"]
[SourceTitle "playchess.com"]
[Source "ChessBase"]
[SourceQuality "1"]
[WhiteTeam "Germany"]
[BlackTeam "Poland"]
[WhiteTeamCountry "GER"]
[BlackTeamCountry "POL"]
[TimeControl "40/5400+30:1800+30"]

{[%evp 9,59,17,15,22,19,-25,-26,-31,21,-10,-8,-6,0,12,36,-38,0,-15,-7,-42,21,18,9,5,14,25,25,15,9,6,18,0,20,19,22,4,4,4,6,0,0,0,0,0,0,0,0,0,0,0,0,0]} 1. Nf3 {[%emt 0:00:04]} Nf6 {[%emt 0:00:47]} 2. c4 {[%emt 0:00:17]} e6 {[%emt 0:00:06]} 3. Nc3 {[%emt 0:00:22]} d5 {[%emt 0:00:07]} 4. e3 {[%emt 0:00:12]} a6 {[%emt 0:02:37]} 5. b3 {[%emt 0:01:17]} Bd6 {[%emt 0:02:39]} 6. Bb2 {[%emt 0:00:36] A17: English Opening: 1...Nf6 with ...Bb4.} O-O {[%emt 0:00:48]} 7. g4 {[%emt 0:09:04] 7.g3 gains popularity.} Nxg4 {[%emt 0:13:11]} 8. Rg1 {[%emt 0:05:38] Black has an edge.} f5 {[%emt 0:02:38]} (8... Nf6 $15) 9. h3 $11 {[%emt 0:04:15]} Nf6 {[%emt 0:00:44]} 10. cxd5 {[%emt 0:00:50]} e5 {[%emt 0:00:47]} 11. Ng5 {[%emt 0:04:25]} Qe7 {[%emt 0:04:01]} 12. Qc2 {[%emt 0:04:44]} ({White should try} 12. Ne6 $14 Bxe6 13. dxe6) 12... c6 {[%emt 0:06:42]} ({Resist} 12... h6 13. Ne6 Bxe6 14. dxe6 $16) (12... Kh8 $5 {[%cal Rc7c6]}) 13. Ne6 {[%emt 0:10:49]} Bxe6 {[%emt 0:05:51]} 14. dxe6 {[%emt 0:00:30]} Qxe6 {[%emt 0:00:03]} (14... Nd5 $1 $15) 15. Bc4 {[%emt 0:06:40]} Nd5 {[%emt 0:00:26] [#] ...b5 would be deadly.} 16. Qd3 $146 {[%emt 0:02:30][%cal Rc3d5]} (16. e4 {is interesting.} fxe4 17. Qxe4 b5 18. Nxd5 bxc4 19. Nb6) ({Predecessor:} 16. e4 fxe4 17. Qxe4 Kh8 18. Nxd5 cxd5 19. Bxd5 Qe7 20. Bxb7 Ra7 21. Bd5 Nd7 22. Bc4 {1-0 Delgado Ramirez,N (2619)-Vazquez,G (2501) PAR-ch Asuncion 2019 (4)}) 16... b5 {[%emt 0:01:12]} 17. Bxd5 {[%emt 0:01:47]} (17. Nxd5 {seems wilder.} bxc4 18. Nf4 Rf7 19. Nxe6 cxd3 20. Rc1) 17... cxd5 {[%emt 0:00:09]} 18. Qxd5 {[%emt 0:00:34]} Qxd5 {[%emt 0:00:11] The position is equal.} 19. Nxd5 {[%emt 0:00:02]} Nd7 {[%emt 0:00:37]} 20. Ke2 {[%emt 0:02:23]} Kf7 {[%emt 0:04:21]} 21. f4 {[%emt 0:03:51]} Rfe8 {[%emt 0:04:13]} 22. Rac1 {[%emt 0:04:53] [#] Hoping for Nc7.} Rac8 {[%emt 0:00:18] Against Nc7} 23. fxe5 {[%emt 0:00:51]} Nxe5 {[%emt 0:02:32]} 24. Rxc8 {[%emt 0:03:55]} Rxc8 {[%emt 0:00:07]} 25. Rf1 {[%emt 0:00:04]} Ke6 {[%emt 0:03:26]} 26. Nf4+ {[%emt 0:03:14]} Ke7 {[%emt 0:00:06]} 27. Nd5+ {[%emt 0:02:24][%mdl 64] [#] Discovered Attack} Ke6 {[%emt 0:00:07]} 28. Nf4+ {[%emt 0:00:40]} Ke7 {[%emt 0:03:39]} 29. Nd5+ {[%emt 0:00:27][%mdl 64] Discovered Attack} Ke6 {[%emt 0:00:05]} 30. Nf4+ {[%emt 0:28:12] Not much happened in this game.   Weighted Error Value: White=0.11 (very precise) /Black=0.14 (very precise)} 1/2-1/2

[Event "ETCC Open 2023"]
[Site "Budva"]
[Date "2023.11.14"]
[Round "4.4"]
[White "Gumularz, Szymon"]
[Black "Kollars, Dmitrij"]
[Result "1/2-1/2"]
[ECO "A29"]
[WhiteElo "2580"]
[BlackElo "2642"]
[Annotator "ChessBase"]
[PlyCount "142"]
[EventDate "2023.11.10"]
[EventType "team-tourn"]
[EventCountry "MNE"]
[SourceTitle "playchess.com"]
[Source "ChessBase"]
[SourceQuality "1"]
[WhiteTeam "Poland"]
[BlackTeam "Germany"]
[WhiteTeamCountry "POL"]
[BlackTeamCountry "GER"]
[TimeControl "40/5400+30:1800+30"]

1. c4 {[%emt 0:00:05]} Nf6 {[%emt 0:00:50]} 2. Nc3 {[%emt 0:00:18]} e5 {[%emt 0:00:30]} 3. Nf3 {[%emt 0:00:12]} Nc6 {[%emt 0:00:22]} 4. g3 {[%emt 0:00:12]} Bb4 {[%emt 0:01:08]} 5. Bg2 {[%emt 0:00:14]} O-O {[%emt 0:00:57]} 6. O-O {[%emt 0:00:06]} Bxc3 {[%emt 0:06:22]} 7. bxc3 {[%emt 0:01:20]} Re8 {[%emt 0:02:53]} 8. d3 {[%emt 0:01:36]} e4 {[%emt 0:05:32]} 9. Nd4 {[%emt 0:00:11]} exd3 {[%emt 0:02:15]} 10. exd3 {[%emt 0:00:12]} d5 {[%emt 0:03:32]} 11. Nxc6 {[%emt 0:06:34]} bxc6 {[%emt 0:00:04]} 12. Bg5 {[%emt 0:00:26]} Bf5 {[%emt 0:09:46]} 13. cxd5 {[%emt 0:13:30]} cxd5 {[%emt 0:01:26]} 14. Qf3 {[%emt 0:09:54]} Be6 {[%emt 0:03:03]} 15. Rfe1 {[%emt 0:01:37]} h6 {[%emt 0:01:37]} 16. Be3 {[%emt 0:04:27]} Nd7 {[%emt 0:05:54]} 17. Qf4 {[%emt 0:00:55]} c6 {[%emt 0:06:58]} 18. Qa4 {[%emt 0:08:14]} Qc8 {[%emt 0:04:23]} 19. Bf4 {[%emt 0:11:40]} Nb6 {[%emt 0:02:50]} 20. Qa5 {[%emt 0:00:31]} Bf5 {[%emt 0:01:33]} 21. Bf1 {[%emt 0:00:41]} Re6 {[%emt 0:07:49]} 22. a4 {[%emt 0:07:38]} c5 {[%emt 0:04:46]} 23. Rxe6 {[%emt 0:03:40]} Bxe6 {[%emt 0:00:11]} 24. Be3 {[%emt 0:00:34]} Nd7 {[%emt 0:02:10]} 25. Rb1 {[%emt 0:09:23]} Rb8 {[%emt 0:02:42]} 26. Rxb8 {[%emt 0:03:25]} Qxb8 {[%emt 0:02:38]} 27. Qb5 {[%emt 0:00:48]} Qc8 {[%emt 0:02:48]} 28. d4 {[%emt 0:02:25]} c4 {[%emt 0:00:14]} 29. Bf4 {[%emt 0:00:43]} a6 {[%emt 0:06:46]} 30. Qb4 {[%emt 0:00:05]} Nf6 {[%emt 0:02:19]} 31. f3 {[%emt 0:00:11]} Bh3 {[%emt 0:01:21]} 32. Be2 {[%emt 0:01:08]} Qf5 {[%emt 0:02:57]} 33. Qb2 {[%emt 0:05:30]} Qe6 {[%emt 0:01:10]} 34. Kf2 {[%emt 0:00:36]} Bf5 {[%emt 0:00:26]} 35. Qb8+ {[%emt 0:02:14]} Kh7 {[%emt 0:00:09]} 36. Qd6 {[%emt 0:00:09]} g5 {[%emt 0:03:16]} 37. Qxe6 {[%emt 0:00:40]} Bxe6 {[%emt 0:00:09]} 38. Be5 {[%emt 0:00:25]} Kg6 {[%emt 0:00:59]} 39. Bd1 {[%emt 0:00:18]} Ne8 {[%emt 0:02:55]} 40. a5 {[%emt 0:01:40]} Bd7 {[%emt 0:02:13]} 41. Bc2+ {[%emt 0:31:13]} f5 {[%emt 0:01:38]} 42. g4 {[%emt 0:00:00]} Nf6 {[%emt 0:05:43]} 43. Kg2 {[%emt 0:00:00]} Ng8 {[%emt 0:06:51]} 44. gxf5+ {[%emt 0:00:00]} Bxf5 {[%emt 0:02:24]} 45. Ba4 {[%emt 0:00:00]} Bc8 {[%emt 0:00:16]} 46. Be8+ {[%emt 0:00:00]} Kf5 {[%emt 0:02:19]} 47. Bg7 {[%emt 0:00:00]} Ke6 {[%emt 0:01:38]} 48. Bh5 {[%emt 0:00:00]} Ke7 {[%emt 0:00:31]} 49. Kg3 {[%emt 0:00:00]} Be6 {[%emt 0:06:24]} 50. f4 {[%emt 0:01:11]} Kd7 {[%emt 0:00:35]} 51. fxg5 {[%emt 0:02:31]} hxg5 {[%emt 0:00:03]} 52. Bd1 {[%emt 0:00:25]} Ke7 {[%emt 0:01:19]} 53. Ba4 {[%emt 0:01:06]} Kf7 {[%emt 0:07:26]} 54. Be5 {[%emt 0:00:04]} Ne7 {[%emt 0:00:00]} 55. Bc7 {[%emt 0:01:32]} Bc8 {[%emt 0:00:00]} 56. Kf3 {[%emt 0:01:15]} Nf5 {[%emt 0:00:00]} 57. Bd8 {[%emt 0:01:30]} Nd6 {[%emt 0:00:00]} 58. Bxg5 {[%emt 0:00:54]} Ne4 {[%emt 0:00:00]} 59. Kf4 {[%emt 0:00:23]} Nxc3 {[%emt 0:00:00]} 60. Bc2 {[%emt 0:00:05]} Na2 {[%emt 0:00:05]} 61. Bf5 {[%emt 0:02:31]} Bxf5 {[%emt 0:01:46]} 62. Kxf5 {[%emt 0:00:02]} c3 {[%emt 0:00:05]} 63. Ke5 {[%emt 0:00:14]} c2 {[%emt 0:01:11]} 64. Kxd5 {[%emt 0:00:10]} c1=Q {[%emt 0:00:06]} 65. Bxc1 {[%emt 0:00:03]} Nxc1 {[%emt 0:00:04]} 66. Kc4 {[%emt 0:02:10]} Ke6 {[%emt 0:01:14]} 67. h4 {[%emt 0:00:19]} Kd6 {[%emt 0:00:50]} 68. h5 {[%emt 0:00:24]} Ne2 {[%emt 0:00:05]} 69. h6 {[%emt 0:00:07]} Nf4 {[%emt 0:00:03]} 70. d5 {[%emt 0:01:30]} Ng6 {[%emt 0:00:20]} 71. Kd4 {[%emt 0:00:36]} Nh8 {[%emt 0:00:21]} 1/2-1/2

[Event "ETCC Open 2023"]
[Site "Budva"]
[Date "2023.11.14"]
[Round "4.5"]
[White "Kadric, Denis"]
[Black "Nikolovski, Nikola"]
[Result "1-0"]
[ECO "C02"]
[WhiteElo "2584"]
[BlackElo "2405"]
[Annotator "TA"]
[PlyCount "69"]
[EventDate "2023.11.10"]
[EventType "team-tourn"]
[EventCountry "MNE"]
[SourceTitle "playchess.com"]
[Source "ChessBase"]
[SourceQuality "1"]
[WhiteTeam "Montenegro"]
[BlackTeam "Macedonia"]
[WhiteTeamCountry "MNE"]
[BlackTeamCountry "MKD"]
[TimeControl "40/5400+30:1800+30"]

{[%evp 15,69,37,42,21,18,8,4,0,20,-17,11,21,32,30,107,103,86,77,89,81,94,89,100,95,131,131,143,174,314,241,226,260,231,211,218,222,235,183,322,320,316,306,305,307,362,341,360,347,378,259,595,397,397,402,875,865]} 1. e4 {[%emt 0:00:03]} e6 {[%emt 0:00:27]} 2. d4 {[%emt 0:00:05]} d5 {[%emt 0:00:33]} 3. e5 {[%emt 0:00:09]} c5 {[%emt 0:00:32]} 4. c3 {[%emt 0:00:03]} Nc6 {[%emt 0:00:07]} 5. Nf3 {[%emt 0:00:06]} Bd7 {[%emt 0:01:24]} 6. Be2 {[%emt 0:00:07]} Nge7 {[%emt 0:00:30][%cal Bg8e7,Be7f5,Bf5h4,Bh4g6][%mdl 32]} 7. O-O {[%emt 0:00:11]} Nf5 {[%emt 0:01:13]} 8. dxc5 {[%emt 0:01:51]} Bxc5 {[%emt 0:03:40][%cal Bf8c5,Bc5b6,Bb6c7][%mdl 32]} 9. b4 {[%emt 0:00:07] C02: French: Advance Variation.} Bb6 {[%emt 0:12:00]} 10. Bd3 {[%emt 0:01:32]} Nh4 {[%emt 0:08:08]} 11. Re1 {[%emt 0:04:02] The position is equal.} Bc7 {[%emt 0:03:16]} 12. Bf4 {[%emt 0:31:51] [#]} Ng6 $146 {[%emt 0:04:43]} ({Predecessor:} 12... Nxf3+ 13. Qxf3 g5 14. Bg3 h5 15. h3 g4 16. hxg4 hxg4 17. Qxg4 Qe7 18. b5 Na5 {1-0 Stevic,H (2540)-Sertic,R (2350) CRO Cup Mali Losinj 2023 (1.2)}) 13. Bg3 {[%emt 0:01:47]} O-O {[%emt 0:08:23]} 14. Nbd2 {[%emt 0:10:21]} f5 {[%emt 0:04:09]} (14... a5 $11 {keeps the balance.}) 15. exf6 $16 {[%emt 0:04:40] White now steadily converts the win.} Bxg3 {[%emt 0:04:48]} 16. hxg3 {[%emt 0:00:45] fxg7 is the strong threat.} Qxf6 {[%emt 0:00:52]} 17. Bxg6 {[%emt 0:00:03]} hxg6 {[%emt 0:02:18]} 18. Nb3 {[%emt 0:04:24]} b6 {[%emt 0:17:17] Prevents Nc5.} 19. Qd2 {[%emt 0:02:25]} Rac8 {[%emt 0:03:53]} 20. Re3 {[%emt 0:01:11]} Rc7 {[%emt 0:12:12]} 21. Rae1 {[%emt 0:00:51]} Ne7 {[%emt 0:00:41]} (21... Re8 $142 22. Qe2 Bc8) 22. Ne5 {[%emt 0:00:52][%cal Bf3e5,Be5g6,Bg6f4][%mdl 32]} Nf5 {[%emt 0:00:57]} 23. Rf3 {[%emt 0:07:55]} Qd8 {[%emt 0:02:04]} 24. Nxg6 {[%emt 0:04:13] Excellent horsemanship.} Rf6 {[%emt 0:00:07]} 25. Qg5 {[%emt 0:01:08] Threatens to win with Nd4.} Be8 {[%emt 0:01:59]} 26. Nf4 {[%emt 0:02:14] And now g4 would win.} Qc8 {[%emt 0:01:12]} (26... Rc8 $142 27. Rxe6 (27. Nxe6 $2 {loses.} Rxe6 28. Qd2 Rxe1+ 29. Qxe1 Qd7 $19) 27... Rxe6 28. Nxe6 Qxg5 29. Nxg5 g6) 27. g4 $18 {[%emt 0:03:18]} Nd6 {[%emt 0:04:21] [#] ...Nf7 would be deadly.} 28. Nxd5 $1 {[%emt 0:00:51][%mdl 576] Double Attack} Rxf3 {[%emt 0:00:19]} 29. Nxc7 {[%emt 0:00:06]} ({Worse is} 29. gxf3 exd5 30. Qxd5+ Nf7 $11) 29... Rf6 {[%emt 0:02:10]} 30. Nxe8 {[%emt 0:00:04]} Qxe8 {[%emt 0:00:15]} 31. Nd4 {[%emt 0:00:09]} Nf7 {[%emt 0:00:18]} 32. Qb5 {[%emt 0:01:20]} Qe7 {[%emt 0:00:50] [#]} (32... Qxb5 {is a better chance.} 33. Nxb5 a5) 33. Qc4 {[%emt 0:00:28][%cal Rd4e6]} Ng5 {[%emt 0:00:44]} 34. Re5 {[%emt 0:01:28]} Rh6 {[%emt 0:00:22]} (34... Nf7 $142) 35. Nf5 {[%emt 0:00:15] Weighted Error Value: White=0.21 (precise) /Black=0.39} 1-0

[Event "ETCC Open 2023"]
[Site "Budva"]
[Date "2023.11.14"]
[Round "4.6"]
[White "Risteski, Emil"]
[Black "Djukic, Nikola"]
[Result "1/2-1/2"]
[ECO "B38"]
[WhiteElo "2379"]
[BlackElo "2518"]
[Annotator "ChessBase"]
[PlyCount "60"]
[EventDate "2023.11.10"]
[EventType "team-tourn"]
[EventCountry "MNE"]
[SourceTitle "playchess.com"]
[Source "ChessBase"]
[SourceQuality "1"]
[WhiteTeam "Macedonia"]
[BlackTeam "Montenegro"]
[WhiteTeamCountry "MKD"]
[BlackTeamCountry "MNE"]
[TimeControl "40/5400+30:1800+30"]

1. e4 {[%emt 0:00:19]} c5 {[%emt 0:00:08]} 2. Nf3 {[%emt 0:00:11]} Nc6 {[%emt 0:00:07]} 3. d4 {[%emt 0:00:05]} cxd4 {[%emt 0:00:06]} 4. Nxd4 {[%emt 0:00:04]} g6 {[%emt 0:00:06]} 5. c4 {[%emt 0:00:55]} Nf6 {[%emt 0:00:05]} 6. Nc3 {[%emt 0:00:05]} d6 {[%emt 0:00:08]} 7. f3 {[%emt 0:05:35]} Bg7 {[%emt 0:00:12]} 8. Be3 {[%emt 0:01:54]} O-O {[%emt 0:00:09]} 9. Qd2 {[%emt 0:00:36]} Nh5 {[%emt 0:03:59]} 10. Be2 {[%emt 0:17:14]} Nxd4 {[%emt 0:01:56]} 11. Bxd4 {[%emt 0:00:05]} Bxd4 {[%emt 0:00:07]} 12. Qxd4 {[%emt 0:00:03]} Nf4 {[%emt 0:00:10]} 13. g3 {[%emt 0:09:42]} e5 {[%emt 0:16:20]} 14. Qd2 {[%emt 0:00:27]} Ne6 {[%emt 0:00:07]} 15. Rd1 {[%emt 0:03:20]} Nd4 {[%emt 0:00:21]} 16. Nb5 {[%emt 0:01:15]} Nxb5 {[%emt 0:03:26]} 17. cxb5 {[%emt 0:00:06]} Be6 {[%emt 1:11:33]} 18. b4 {[%emt 0:06:44]} Rc8 {[%emt 0:00:00]} 19. Qxd6 {[%emt 0:05:32]} Qxd6 {[%emt 0:00:00]} 20. Rxd6 {[%emt 0:00:05]} Rc1+ {[%emt 0:00:00]} 21. Rd1 {[%emt 0:00:48]} Rfc8 {[%emt 0:00:00]} 22. Bd3 {[%emt 0:04:00]} Rxd1+ {[%emt 0:00:00]} 23. Kxd1 {[%emt 0:00:05]} Rc3 {[%emt 0:00:00]} 24. Kd2 {[%emt 0:00:14]} Ra3 {[%emt 0:00:00]} 25. Rc1 {[%emt 0:00:29]} Rxa2+ {[%emt 0:00:00]} 26. Rc2 {[%emt 0:00:42]} Rxc2+ {[%emt 0:00:00]} 27. Kxc2 {[%emt 0:00:22]} Kf8 {[%emt 0:00:00]} 28. Kc3 {[%emt 0:01:03]} Ke7 {[%emt 0:00:00]} 29. b6 {[%emt 0:06:28]} axb6 {[%emt 0:00:00]} 30. Kd2 {[%emt 0:00:21]} Kd6 {[%emt 0:00:00]} 1/2-1/2